[Event "Festival Groningen-A 2024"]
[Site "Groningen"]
[Date "2024.12.26"]
[Round "5.16"]
[White "Labruyere, Roger"]
[Black "Noordenbos, Daan"]
[Result "1-0"]
[ECO "C90"]
[WhiteElo "2344"]
[BlackElo "2130"]
[Annotator "TA"]
[PlyCount "55"]
[EventDate "2024.12.21"]
[EventType "swiss"]
[EventCountry "NED"]
[SourceTitle "playchess.com"]
[Source "ChessBase"]
[SourceQuality "1"]
[TimeControl "40/5400+30:1800+30"]

{[%evp 24,55,0,-8,-8,-10,0,0,52,46,61,0,9,16,19,26,119,97,119,-73,-64,-94,35,25,138,133,326,335,302,333,667,695,1003,966]} 1. e4 {[%emt 0:00:02]} e5 {[%emt 0:00:11]} 2. Nf3 {[%emt 0:00:05]} Nc6 {[%emt 0:00:08]} 3. Bb5 {[%emt 0:00:25]} a6 {[%emt 0:00:10]} 4. Ba4 {[%emt 0:00:05]} Nf6 {[%emt 0:00:10]} 5. O-O {[%emt 0:00:06]} Be7 {[%emt 0:00:12]} 6. Re1 {[%emt 0:00:04]} b5 {[%emt 0:00:11]} 7. Bb3 {[%emt 0:00:04]} d6 {[%emt 0:00:15]} 8. c3 {[%emt 0:00:07]} Na5 {[%emt 0:00:20]} 9. Bc2 {[%emt 0:00:05]} c5 {[%emt 0:00:10]} 10. d4 {[%emt 0:00:21]} Qc7 {[%emt 0:18:17]} 11. Nbd2 {[%emt 0:04:06][%cal Bb1d2,Bd2f1,Bf1e3,Be3f5][%mdl 32]} O-O {[%emt 0:00:58]} 12. Nf1 {[%emt 0:02:27]} cxd4 {[%emt 0:09:22]} 13. cxd4 {[%emt 0:00:16]} Bg4 {[%emt 0:00:34]} 14. Ne3 {[%emt 0:03:54]} Bxf3 {[%emt 0:05:53]} 15. Qxf3 {[%emt 0:00:30][%cal Oe3f5]} exd4 {[%emt 0:00:40]} (15... Nc6 $1 $11) 16. Nf5 $14 {[%emt 0:00:05][%cal Oc1h6]} Rfe8 {[%emt 0:18:56] [#]} 17. Qg3 {[%emt 0:33:56] White has more active pieces.} Bf8 {[%emt 0:01:47]} 18. Bg5 $1 {[%emt 0:05:30]} Nh5 $1 {[%emt 0:05:01]} 19. Qd3 {[%emt 0:06:46][%mdl 1024] White has compensation.} g6 {[%emt 0:08:53] [#] Prevents g4.} (19... Nc4 $11) 20. Bd1 $1 $36 {[%emt 0:03:55][%mdl 2048] Threatens to win with Bxh5. White is on the roll.} (20. Nxd4 $6 Bg7 21. Rac1 Qb6 $11) 20... f6 {[%emt 0:02:06]} 21. Bh4 $2 {[%emt 0:03:20]} (21. Bd2 $16 {and life is bright.}) 21... Nf4 $17 {[%emt 0:01:55]} 22. Qd2 {[%emt 0:06:42]} (22. Qxd4 gxf5 23. Bf3 Nc6 24. Qxf6 Bg7 $19) 22... Ne6 {[%emt 0:04:29]} (22... d5 $17 23. Nxd4 dxe4) 23. Nxd4 $14 {[%emt 0:00:17]} Nc4 {[%emt 0:02:57]} (23... Nc5 $1 $11 {remains equal.}) 24. Nxe6 $16 {[%emt 0:00:08]} Rxe6 $2 {[%emt 0:00:03]} (24... Qc8 $16 25. Qc3 Qxe6 26. Bxf6 a5) 25. Qd5 $1 $18 {[%emt 0:00:17][%csl LRa8,LRe6,LRf6]} Rae8 {[%emt 0:00:08] [#]} 26. Bg4 $1 {[%emt 0:00:14]} (26. Bxf6 Qc5 27. Qxc5 dxc5 $16) 26... f5 $2 {[%emt 0:00:07]} (26... Qf7 27. Bxe6 Rxe6) 27. exf5 {[%emt 0:00:13]} Qc6 {[%emt 0:00:04]} 28. Bf3 {[%emt 0:00:54]} (28. Qxc6 $2 {is a self mate.} Rxe1+ 29. Rxe1 Rxe1#) ({Weaker is} 28. Rxe6 Qxd5 29. Rxe8 Qc6 $16) 1-0

[Event "Festival Groningen-A 2024"]
[Site "Groningen"]
[Date "2024.12.26"]
[Round "5.17"]
[White "Van Roon, Sjoerd"]
[Black "Okuno, Rion"]
[Result "0-1"]
[ECO "B90"]
[WhiteElo "2285"]
[BlackElo "2027"]
[Annotator "RC"]
[PlyCount "112"]
[EventDate "2024.12.21"]
[EventType "swiss"]
[EventCountry "NED"]
[SourceTitle "playchess.com"]
[Source "ChessBase"]
[SourceQuality "1"]
[TimeControl "40/5400+30:1800+30"]

1. e4 {[%emt 0:00:03]} c5 {[%emt 0:00:04]} 2. Nf3 {[%emt 0:00:03]} d6 {[%emt 0:00:06]} 3. d4 {[%emt 0:00:02]} cxd4 {[%emt 0:00:06]} 4. Nxd4 {[%emt 0:00:02]} Nf6 {[%emt 0:00:06]} 5. Nc3 {[%emt 0:00:03]} a6 {[%emt 0:00:04]} 6. Be3 {[%emt 0:00:25]} e5 {[%emt 0:01:36]} 7. Nb3 {[%emt 0:00:05]} Be7 {[%emt 0:00:04]} 8. f3 {[%emt 0:00:14]} Be6 {[%emt 0:00:04]} 9. Qd2 {[%emt 0:00:42]} h5 {[%emt 0:00:05]} 10. Nd5 {[%emt 0:00:46]} Nxd5 {[%emt 0:00:09]} 11. exd5 {[%emt 0:00:16]} Bf5 {[%emt 0:00:04]} 12. Be2 {[%emt 0:01:25]} a5 {[%emt 0:00:40]} 13. Bb5+ {[%emt 0:01:35]} Nd7 {[%emt 0:00:06]} 14. a4 {[%emt 0:02:01]} O-O {[%emt 0:05:45]} 15. O-O {[%emt 0:00:15]} Nf6 {[%emt 0:00:43]} 16. c4 {[%emt 0:06:01]} Bd7 {[%emt 0:00:44]} 17. Rfd1 {[%emt 0:07:22]} b6 {[%emt 0:30:56]} 18. Qf2 {[%emt 0:05:34]} Rb8 {[%emt 0:01:41]} 19. Nc1 {[%emt 0:03:28]} e4 {[%emt 0:16:12]} 20. Ne2 {[%emt 0:02:13]} exf3 {[%emt 0:08:13]} 21. gxf3 {[%emt 0:00:58]} Bxb5 {[%emt 0:02:09]} 22. cxb5 {[%emt 0:01:15]} Nd7 {[%emt 0:01:58]} 23. Nd4 {[%emt 0:02:34]} Bh4 {[%emt 0:00:53]} 24. Qg2 {[%emt 0:10:16]} Qf6 {[%emt 0:01:08]} 25. Nc6 {[%emt 0:04:01]} Rbe8 {[%emt 0:00:18]} 26. Bd4 {[%emt 0:00:05]} Qg5 {[%emt 0:07:04]} 27. Rd2 {[%emt 0:04:17]} Qxg2+ {[%emt 0:00:44]} 28. Rxg2 {[%emt 0:01:43]} Bf6 {[%emt 0:00:03]} 29. Rd1 {[%emt 0:03:12]} Bxd4+ {[%emt 0:02:10]} 30. Nxd4 {[%emt 0:01:46]} Re5 {[%emt 0:00:41]} 31. Nc6 {[%emt 0:06:22]} Re3 {[%emt 0:01:03]} 32. f4 {[%emt 0:00:13]} Rfe8 {[%emt 0:00:58]} 33. Nd4 {[%emt 0:01:13]} Re1+ {[%emt 0:02:24]} 34. Rxe1 {[%emt 0:00:03]} Rxe1+ {[%emt 0:00:03]} 35. Kf2 {[%emt 0:00:04]} Re4 {[%emt 0:00:48]} 36. Nc6 {[%emt 0:05:28]} Rxf4+ {[%emt 0:01:25]} 37. Ke3 {[%emt 0:00:41]} Rxa4 {[%emt 0:00:28]} 38. Ne7+ {[%emt 0:01:21]} Kf8 {[%emt 0:00:52]} 39. Nc8 {[%emt 0:00:02]} Nf6 {[%emt 0:01:40]} 40. Rd2 {[%emt 0:00:20]} Rc4 {[%emt 0:04:45]} 41. Nxb6 {[%emt 0:47:40]} Rc5 {[%emt 0:30:10]} 42. Na4 {[%emt 0:00:35]} Nxd5+ {[%emt 0:02:35]} 43. Ke4 {[%emt 0:01:12]} Nf6+ {[%emt 0:00:25]} 44. Kf3 {[%emt 0:00:09]} Rxb5 {[%emt 0:05:07]} 45. Rxd6 {[%emt 0:00:04]} Rb3+ {[%emt 0:00:38]} 46. Kg2 {[%emt 0:00:35]} Rb4 {[%emt 0:00:18]} 47. Nb6 {[%emt 0:00:43]} Rxb2+ {[%emt 0:00:16]} 48. Kh3 {[%emt 0:00:03]} Ng4 {[%emt 0:02:43]} 49. Nd5 {[%emt 0:01:26]} g6 {[%emt 0:01:09]} 50. Ra6 {[%emt 0:01:58]} Rxh2+ {[%emt 0:00:47]} 51. Kg3 {[%emt 0:00:16]} Ra2 {[%emt 0:00:16]} 52. Kh4 {[%emt 0:00:21]} Kg7 {[%emt 0:00:25]} 53. Nc3 {[%emt 0:00:22]} Ra3 {[%emt 0:00:47]} 54. Ne4 {[%emt 0:00:13]} a4 {[%emt 0:00:59]} 55. Ng5 {[%emt 0:01:59]} Nh6 {[%emt 0:01:13]} 56. Ne4 {[%emt 0:00:35]} Ra1 {[%emt 0:01:40]} 0-1

[Event "Festival Groningen-A 2024"]
[Site "Groningen"]
[Date "2024.12.26"]
[Round "5.18"]
[White "Grooten, Tommy"]
[Black "De Jong, Migchiel"]
[Result "1/2-1/2"]
[ECO "A40"]
[WhiteElo "2153"]
[BlackElo "2275"]
[Annotator "RC"]
[PlyCount "67"]
[EventDate "2024.12.21"]
[EventType "swiss"]
[EventCountry "NED"]
[SourceTitle "playchess.com"]
[Source "ChessBase"]
[SourceQuality "1"]
[TimeControl "40/5400+30:1800+30"]

1. d4 {[%emt 0:00:15]} e6 {[%emt 0:00:45]} 2. c4 {[%emt 0:00:12]} Bb4+ {[%emt 0:00:07]} 3. Bd2 {[%emt 0:00:31]} a5 {[%emt 0:00:34]} 4. a3 {[%emt 0:00:09]} Bxd2+ {[%emt 0:04:05]} 5. Qxd2 {[%emt 0:00:13]} Nf6 {[%emt 0:04:09]} 6. Nc3 {[%emt 0:01:06]} d5 {[%emt 0:00:26]} 7. e3 {[%emt 0:00:56]} O-O {[%emt 0:01:54]} 8. cxd5 {[%emt 0:01:01]} exd5 {[%emt 0:00:43]} 9. Bd3 {[%emt 0:00:20]} b6 {[%emt 0:04:35]} 10. Nf3 {[%emt 0:01:47]} Bb7 {[%emt 0:00:57]} 11. O-O {[%emt 0:03:07]} Qe7 {[%emt 0:03:41]} 12. Ne5 {[%emt 0:14:23]} c5 {[%emt 0:09:05]} 13. Rae1 {[%emt 0:02:28]} Nbd7 {[%emt 0:06:14]} 14. f4 {[%emt 0:02:58]} Rad8 {[%emt 0:09:34]} 15. Qf2 {[%emt 0:08:00]} Ne4 {[%emt 0:05:01]} 16. Qc2 {[%emt 0:05:14]} Ndf6 {[%emt 0:04:16]} 17. Rc1 {[%emt 0:20:26]} Rc8 {[%emt 0:04:23]} 18. Bxe4 {[%emt 0:02:14]} dxe4 {[%emt 0:01:19]} 19. Qa4 {[%emt 0:06:08]} Rfd8 {[%emt 0:05:09]} 20. Rfd1 {[%emt 0:00:24]} cxd4 {[%emt 0:07:29]} 21. Rxd4 {[%emt 0:00:19]} Nd5 {[%emt 0:01:11]} 22. Nc4 {[%emt 0:14:10]} Nxf4 {[%emt 0:04:11]} 23. Nxb6 {[%emt 0:04:14]} Rxc3 {[%emt 0:00:54]} 24. Rxd8+ {[%emt 0:00:42]} Qxd8 {[%emt 0:00:12]} 25. Rxc3 {[%emt 0:00:26]} Ne2+ {[%emt 0:00:29]} 26. Kh1 {[%emt 0:00:23]} Nxc3 {[%emt 0:00:25]} 27. bxc3 {[%emt 0:00:02]} h6 {[%emt 0:03:07]} 28. Qd4 {[%emt 0:00:31]} Qh4 {[%emt 0:00:40]} 29. h3 {[%emt 0:01:02]} Kh7 {[%emt 0:02:43]} 30. Nc4 {[%emt 0:01:27]} Bc8 {[%emt 0:02:33]} 31. Kh2 {[%emt 0:00:46]} Bxh3 {[%emt 0:01:53]} 32. gxh3 {[%emt 0:00:17]} Qf2+ {[%emt 0:00:05]} 33. Kh1 {[%emt 0:00:06]} Qf1+ {[%emt 0:00:26]} 34. Kh2 {[%emt 0:00:08]} 1/2-1/2

[Event "Festival Groningen-A 2024"]
[Site "Groningen"]
[Date "2024.12.26"]
[Round "5.19"]
[White "Ponnio, Toni"]
[Black "Van Rootselaar, Rik"]
[Result "0-1"]
[ECO "D77"]
[WhiteElo "2111"]
[BlackElo "2265"]
[Annotator "RC"]
[PlyCount "116"]
[EventDate "2024.12.21"]
[EventType "swiss"]
[EventCountry "NED"]
[SourceTitle "playchess.com"]
[Source "ChessBase"]
[SourceQuality "1"]
[TimeControl "40/5400+30:1800+30"]

1. Nf3 {[%emt 0:00:04]} Nf6 {[%emt 0:00:33]} 2. g3 {[%emt 0:00:06]} g6 {[%emt 0:00:05]} 3. Bg2 {[%emt 0:00:07]} Bg7 {[%emt 0:00:04]} 4. O-O {[%emt 0:00:07]} O-O {[%emt 0:00:24]} 5. d4 {[%emt 0:00:09]} d5 {[%emt 0:00:32]} 6. c4 {[%emt 0:00:10]} dxc4 {[%emt 0:00:38]} 7. Na3 {[%emt 0:00:09]} c3 {[%emt 0:00:26]} 8. bxc3 {[%emt 0:00:09]} c5 {[%emt 0:00:06]} 9. Re1 {[%emt 0:00:52]} Nc6 {[%emt 0:01:29]} 10. Bb2 {[%emt 0:04:30]} Qb6 {[%emt 0:00:39]} 11. Nc4 {[%emt 0:02:21]} Qb5 {[%emt 0:00:27]} 12. Qb3 {[%emt 0:02:32]} Qa6 {[%emt 0:00:58]} 13. Nce5 {[%emt 0:08:21]} Be6 {[%emt 0:14:36]} 14. Qa3 {[%emt 0:02:40]} Qxa3 {[%emt 0:01:54]} 15. Bxa3 {[%emt 0:00:13]} Ne4 {[%emt 0:02:43]} 16. Nxc6 {[%emt 0:12:50]} bxc6 {[%emt 0:00:30]} 17. Ne5 {[%emt 0:10:22]} Bxe5 {[%emt 0:04:44]} 18. Bxe4 {[%emt 0:05:47]} cxd4 {[%emt 0:00:16]} 19. Bxc6 {[%emt 0:10:17]} Rac8 {[%emt 0:03:48]} 20. cxd4 {[%emt 0:00:28]} Bxd4 {[%emt 0:00:23]} 21. Rac1 {[%emt 0:00:17]} Rc7 {[%emt 0:02:03]} 22. Red1 {[%emt 0:07:43]} Bf6 {[%emt 0:05:07]} 23. Bd5 {[%emt 0:01:06]} Rxc1 {[%emt 0:01:35]} 24. Bxc1 {[%emt 0:00:05]} Rd8 {[%emt 0:15:00]} 25. e4 {[%emt 0:00:46]} Bxd5 {[%emt 0:08:13]} 26. Rxd5 {[%emt 0:00:15]} Rxd5 {[%emt 0:00:59]} 27. exd5 {[%emt 0:00:05]} Bd4 {[%emt 0:00:52]} 28. Ba3 {[%emt 0:11:01]} Kf8 {[%emt 0:00:56]} 29. Kf1 {[%emt 0:04:25]} Ke8 {[%emt 0:00:23]} 30. Ke2 {[%emt 0:00:19]} Kd7 {[%emt 0:01:10]} 31. f3 {[%emt 0:02:18]} Be5 {[%emt 0:04:36]} 32. Kd3 {[%emt 0:01:28]} h5 {[%emt 0:03:13]} 33. Ke4 {[%emt 0:00:44]} Bc7 {[%emt 0:02:32]} 34. Bc5 {[%emt 0:00:39]} a6 {[%emt 0:01:18]} 35. f4 {[%emt 0:06:42]} e6 {[%emt 0:06:26]} 36. Kd4 {[%emt 0:00:39]} f6 {[%emt 0:03:04]} 37. dxe6+ {[%emt 0:02:41]} Kxe6 {[%emt 0:00:06]} 38. Ke4 {[%emt 0:00:06]} Bb8 {[%emt 0:04:17]} 39. Be3 {[%emt 0:01:40]} Bc7 {[%emt 0:07:59]} 40. Bc5 {[%emt 0:00:15]} Ba5 {[%emt 0:01:29]} 41. Be3 {[%emt 0:05:25]} Be1 {[%emt 0:01:06]} 42. Bg1 {[%emt 0:05:26]} Bc3 {[%emt 0:01:13]} 43. Be3 {[%emt 0:03:38]} Bb2 {[%emt 0:01:50]} 44. Bd4 {[%emt 0:09:36]} Bxd4 {[%emt 0:18:00]} 45. Kxd4 {[%emt 0:00:05]} Kf5 {[%emt 0:00:04]} 46. Kd5 {[%emt 0:00:04]} g5 {[%emt 0:00:32]} 47. fxg5 {[%emt 0:00:14]} fxg5 {[%emt 0:00:07]} 48. h3 {[%emt 0:06:47]} h4 {[%emt 0:02:58]} 49. gxh4 {[%emt 0:00:08]} gxh4 {[%emt 0:00:02]} 50. Kd4 {[%emt 0:01:51]} Kf4 {[%emt 0:00:55]} 51. Kd3 {[%emt 0:00:24]} a5 {[%emt 0:01:43]} 52. Kd4 {[%emt 0:03:30]} a4 {[%emt 0:00:36]} 53. a3 {[%emt 0:02:23]} Kg3 {[%emt 0:00:05]} 54. Ke3 {[%emt 0:01:19]} Kxh3 {[%emt 0:00:05]} 55. Kf3 {[%emt 0:00:46]} Kh2 {[%emt 0:00:05]} 56. Kf2 {[%emt 0:00:05]} h3 {[%emt 0:00:04]} 57. Kf1 {[%emt 0:00:18]} Kg3 {[%emt 0:00:05]} 58. Kg1 {[%emt 0:00:13]} Kf3 {[%emt 0:00:12]} 0-1

[Event "Festival Groningen-A 2024"]
[Site "Groningen"]
[Date "2024.12.26"]
[Round "5.20"]
[White "Ratsma, Midas"]
[Black "Mareau, Timothe"]
[Result "0-1"]
[ECO "A80"]
[WhiteElo "2326"]
[BlackElo "2168"]
[Annotator "RC"]
[PlyCount "60"]
[EventDate "2024.12.21"]
[EventType "swiss"]
[EventCountry "NED"]
[SourceTitle "playchess.com"]
[Source "ChessBase"]
[SourceQuality "1"]
[TimeControl "40/5400+30:1800+30"]

1. d4 {[%emt 0:00:03]} f5 {[%emt 0:01:37]} 2. e3 {[%emt 0:00:06]} Nf6 {[%emt 0:00:33]} 3. Be2 {[%emt 0:00:07]} d6 {[%emt 0:01:04]} 4. b4 {[%emt 0:00:05]} e5 {[%emt 0:05:07]} 5. Bb2 {[%emt 0:04:14]} Nbd7 {[%emt 0:06:19]} 6. Nh3 {[%emt 0:00:08]} g6 {[%emt 0:14:08]} 7. O-O {[%emt 0:00:19]} Bg7 {[%emt 0:00:34]} 8. dxe5 {[%emt 0:01:28]} Nxe5 {[%emt 0:01:56]} 9. c4 {[%emt 0:01:23]} Ne4 {[%emt 0:04:06]} 10. Qb3 {[%emt 0:20:40]} Qe7 {[%emt 0:05:00]} 11. Rd1 {[%emt 0:16:44]} O-O {[%emt 0:07:03]} 12. Nf4 {[%emt 0:06:27]} Qf7 {[%emt 0:04:52]} 13. Nc3 {[%emt 0:02:49]} Nxc3 {[%emt 0:06:11]} 14. Bxc3 {[%emt 0:00:06]} Bh8 {[%emt 0:02:50]} 15. h4 {[%emt 0:08:27]} h6 {[%emt 0:02:18]} 16. Qb2 {[%emt 0:04:04]} g5 {[%emt 0:04:00]} 17. h5 {[%emt 0:03:01]} Kh7 {[%emt 0:04:50]} 18. Nd5 {[%emt 0:10:10]} f4 {[%emt 0:04:14]} 19. exf4 {[%emt 0:02:39]} gxf4 {[%emt 0:00:11]} 20. Rd4 {[%emt 0:01:20]} f3 {[%emt 0:01:55]} 21. Rf4 {[%emt 0:01:38]} Qg8 {[%emt 0:02:00]} 22. Bf1 {[%emt 0:02:17]} Bf5 {[%emt 0:02:17]} 23. Ne3 {[%emt 0:06:12]} fxg2 {[%emt 0:01:39]} 24. Be2 {[%emt 0:01:47]} Qg5 {[%emt 0:01:11]} 25. Rxf5 {[%emt 0:00:56]} Rxf5 {[%emt 0:00:38]} 26. Qb1 {[%emt 0:01:37]} Raf8 {[%emt 0:02:46]} 27. Bxe5 {[%emt 0:01:23]} Kg8 {[%emt 0:02:56]} 28. Bxh8 {[%emt 0:02:50]} Rxf2 {[%emt 0:00:07]} 29. Qb2 {[%emt 0:00:52]} Rf1+ {[%emt 0:00:15]} 30. Kh2 {[%emt 0:00:47]} g1=Q+ {[%emt 0:00:11]} 0-1

[Event "Festival Groningen-A 2024"]
[Site "Groningen"]
[Date "2024.12.26"]
[Round "5.21"]
[White "Boeren, Jurriaan"]
[Black "Schoorl, Rob"]
[Result "0-1"]
[ECO "C78"]
[WhiteElo "2147"]
[BlackElo "2295"]
[Annotator "RC"]
[PlyCount "120"]
[EventDate "2024.12.21"]
[EventType "swiss"]
[EventCountry "NED"]
[SourceTitle "playchess.com"]
[Source "ChessBase"]
[SourceQuality "1"]
[TimeControl "40/5400+30:1800+30"]

1. e4 {[%emt 0:00:02]} e5 {[%emt 0:00:06]} 2. Nf3 {[%emt 0:00:04]} Nc6 {[%emt 0:00:07]} 3. Bb5 {[%emt 0:00:03]} a6 {[%emt 0:00:07]} 4. Ba4 {[%emt 0:00:04]} Nf6 {[%emt 0:00:08]} 5. O-O {[%emt 0:00:05]} b5 {[%emt 0:00:09]} 6. Bb3 {[%emt 0:00:06]} Bb7 {[%emt 0:00:05]} 7. Re1 {[%emt 0:09:32]} Bc5 {[%emt 0:00:14]} 8. c3 {[%emt 0:00:49]} d6 {[%emt 0:00:11]} 9. d4 {[%emt 0:01:25]} Bb6 {[%emt 0:00:08]} 10. Be3 {[%emt 0:12:57]} O-O {[%emt 0:03:33]} 11. Nbd2 {[%emt 0:01:16]} h6 {[%emt 0:00:37]} 12. h3 {[%emt 0:00:32]} exd4 {[%emt 0:09:35]} 13. cxd4 {[%emt 0:00:58]} Nb4 {[%emt 0:00:08]} 14. Qb1 {[%emt 0:01:35]} c5 {[%emt 0:01:00]} 15. d5 {[%emt 0:07:57]} c4 {[%emt 0:03:50]} 16. Bc2 {[%emt 0:02:51]} Nd7 {[%emt 0:07:36]} 17. a3 {[%emt 0:03:21]} Nxc2 {[%emt 0:00:59]} 18. Qxc2 {[%emt 0:00:02]} Rc8 {[%emt 0:07:13]} 19. Nf1 {[%emt 0:04:50]} Nc5 {[%emt 0:14:06]} 20. Ng3 {[%emt 0:03:40]} Nd3 {[%emt 0:09:04]} 21. Re2 {[%emt 0:01:21]} Bxe3 {[%emt 0:00:49]} 22. Rxe3 {[%emt 0:00:48]} Qf6 {[%emt 0:01:28]} 23. Qc3 {[%emt 0:12:27]} Qxc3 {[%emt 0:07:12]} 24. bxc3 {[%emt 0:00:03]} Nc5 {[%emt 0:02:39]} 25. Nf5 {[%emt 0:04:26]} Rcd8 {[%emt 0:00:44]} 26. N3d4 {[%emt 0:02:42]} Kh7 {[%emt 0:07:30]} 27. h4 {[%emt 0:12:09]} Rfe8 {[%emt 0:06:57]} 28. Rae1 {[%emt 0:02:22]} g6 {[%emt 0:01:56]} 29. Ng3 {[%emt 0:00:30]} h5 {[%emt 0:00:30]} 30. R3e2 {[%emt 0:06:21]} Re7 {[%emt 0:07:30]} 31. f3 {[%emt 0:01:46]} Rde8 {[%emt 0:00:43]} 32. Kf1 {[%emt 0:04:17]} Nd3 {[%emt 0:02:15]} 33. Ra1 {[%emt 0:01:11]} Nc5 {[%emt 0:02:25]} 34. Nh1 {[%emt 0:01:19]} f5 {[%emt 0:02:05]} 35. exf5 {[%emt 0:00:19]} Rxe2 {[%emt 0:00:14]} 36. fxg6+ {[%emt 0:00:06]} Kxg6 {[%emt 0:00:13]} 37. Nxe2 {[%emt 0:00:05]} Re3 {[%emt 0:01:29]} 38. Nf2 {[%emt 0:01:24]} Kf5 {[%emt 0:01:50]} 39. Rd1 {[%emt 0:01:42]} Na4 {[%emt 0:00:52]} 40. Ne4 {[%emt 0:02:24]} Ke5 {[%emt 0:01:30]} 41. Kf2 {[%emt 0:10:44]} Rd3 {[%emt 0:00:27]} 42. Rc1 {[%emt 0:00:59]} Bxd5 {[%emt 0:03:16]} 43. N4g3 {[%emt 0:01:30]} Bf7 {[%emt 0:01:20]} 44. f4+ {[%emt 0:01:12]} Kf6 {[%emt 0:06:23]} 45. Nd4 {[%emt 0:06:58]} Nxc3 {[%emt 0:03:08]} 46. Rxc3 {[%emt 0:04:09]} Rxd4 {[%emt 0:00:34]} 47. Ke3 {[%emt 0:00:10]} Rd1 {[%emt 0:01:00]} 48. Ne4+ {[%emt 0:00:39]} Ke7 {[%emt 0:04:20]} 49. Nf2 {[%emt 0:02:14]} Rg1 {[%emt 0:01:16]} 50. Kf3 {[%emt 0:01:12]} Bd5+ {[%emt 0:00:38]} 51. Ke3 {[%emt 0:04:26]} Rxg2 {[%emt 0:00:16]} 52. Rc2 {[%emt 0:00:41]} Rg3+ {[%emt 0:06:06]} 53. Kd4 {[%emt 0:00:05]} Bf7 {[%emt 0:00:06]} 54. Re2+ {[%emt 0:00:16]} Kd7 {[%emt 0:00:13]} 55. f5 {[%emt 0:00:36]} Rxa3 {[%emt 0:01:11]} 56. f6 {[%emt 0:00:05]} Be6 {[%emt 0:00:14]} 57. Rd2 {[%emt 0:02:17]} Rf3 {[%emt 0:01:28]} 58. Ne4 {[%emt 0:00:21]} Rd3+ {[%emt 0:02:08]} 59. Rxd3 {[%emt 0:00:06]} cxd3 {[%emt 0:00:04]} 60. Nf2 {[%emt 0:00:53]} Bf5 {[%emt 0:00:37]} 0-1

[Event "Festival Groningen-A 2024"]
[Site "Groningen"]
[Date "2024.12.26"]
[Round "5.22"]
[White "Ivanov, Dmytry"]
[Black "Duijker, Rick"]
[Result "0-1"]
[ECO "A36"]
[WhiteElo "2072"]
[BlackElo "2146"]
[Annotator "RC"]
[PlyCount "140"]
[EventDate "2024.12.21"]
[EventType "swiss"]
[EventCountry "NED"]
[SourceTitle "playchess.com"]
[Source "ChessBase"]
[SourceQuality "1"]
[TimeControl "40/5400+30:1800+30"]

1. c4 {[%emt 0:00:03]} Nf6 {[%emt 0:00:21]} 2. g3 {[%emt 0:00:20]} c5 {[%emt 0:00:30]} 3. Bg2 {[%emt 0:00:17]} Nc6 {[%emt 0:00:29]} 4. Nc3 {[%emt 0:00:12]} g6 {[%emt 0:00:38]} 5. d3 {[%emt 0:01:33]} Bg7 {[%emt 0:00:55]} 6. e4 {[%emt 0:00:10]} d6 {[%emt 0:01:23]} 7. Nge2 {[%emt 0:00:21]} h5 {[%emt 0:02:17]} 8. Bg5 {[%emt 0:02:00]} Nh7 {[%emt 0:17:14]} 9. Be3 {[%emt 0:01:03]} Nf8 {[%emt 0:00:13]} 10. h3 {[%emt 0:08:34]} Ne6 {[%emt 0:01:38]} 11. f4 {[%emt 0:01:53]} Ned4 {[%emt 0:01:00]} 12. O-O {[%emt 0:01:38]} Nxe2+ {[%emt 0:14:43]} 13. Qxe2 {[%emt 0:00:25]} Bd4 {[%emt 0:00:12]} 14. f5 {[%emt 0:01:43]} g5 {[%emt 0:02:46]} 15. f6 {[%emt 0:03:54]} exf6 {[%emt 0:09:27]} 16. Bxd4 {[%emt 0:11:41]} Nxd4 {[%emt 0:00:22]} 17. Qf2 {[%emt 0:02:08]} Be6 {[%emt 0:00:41]} 18. Rae1 {[%emt 0:06:00]} Rh6 {[%emt 0:09:14]} 19. h4 {[%emt 0:17:03]} gxh4 {[%emt 0:04:42]} 20. Qf4 {[%emt 0:06:02]} Rg6 {[%emt 0:04:12]} 21. Nd5 {[%emt 0:03:18]} Bxd5 {[%emt 0:10:50]} 22. exd5+ {[%emt 0:00:09]} Kd7 {[%emt 0:00:21]} 23. Qxh4 {[%emt 0:02:02]} f5 {[%emt 0:02:50]} 24. Qxh5 {[%emt 0:08:24]} Qf6 {[%emt 0:01:39]} 25. Re3 {[%emt 0:05:30]} Rag8 {[%emt 0:03:09]} 26. Bh3 {[%emt 0:10:25]} Rg5 {[%emt 0:04:35]} 27. Qd1 {[%emt 0:02:18]} Rxg3+ {[%emt 0:02:05]} 28. Rxg3 {[%emt 0:02:36]} Rxg3+ {[%emt 0:00:05]} 29. Bg2 {[%emt 0:00:48]} Qg5 {[%emt 0:02:53]} 30. Rf2 {[%emt 0:00:28]} a6 {[%emt 0:01:00]} 31. Qa4+ {[%emt 0:00:47]} Kc7 {[%emt 0:00:30]} 32. Qe8 {[%emt 0:01:56]} Rxd3 {[%emt 0:01:55]} 33. Qxf7+ {[%emt 0:00:24]} Kb8 {[%emt 0:00:02]} 34. Qf8+ {[%emt 0:00:23]} Ka7 {[%emt 0:00:29]} 35. Qxd6 {[%emt 0:00:42]} Rd1+ {[%emt 0:00:13]} 36. Rf1 {[%emt 0:00:10]} Rxf1+ {[%emt 0:01:26]} 37. Kxf1 {[%emt 0:00:07]} Qc1+ {[%emt 0:00:07]} 38. Kf2 {[%emt 0:00:10]} Qxb2+ {[%emt 0:01:00]} 39. Kg1 {[%emt 0:01:07]} Qc1+ {[%emt 0:00:22]} 40. Kh2 {[%emt 0:00:28]} Qxc4 {[%emt 0:00:23]} 41. Qf4 {[%emt 0:31:16]} Qe2 {[%emt 0:18:23]} 42. Qc7 {[%emt 0:00:00]} Nf3+ {[%emt 0:03:46]} 43. Kg3 {[%emt 0:00:00]} Qe5+ {[%emt 0:00:21]} 44. Qxe5 {[%emt 0:00:00]} Nxe5 {[%emt 0:00:06]} 45. Kf4 {[%emt 0:00:00]} Nc4 {[%emt 0:00:47]} 46. Bf1 {[%emt 0:00:00]} b5 {[%emt 0:02:45]} 47. Bxc4 {[%emt 0:00:00]} bxc4 {[%emt 0:00:12]} 48. Kxf5 {[%emt 0:00:00]} c3 {[%emt 0:06:19]} 49. d6 {[%emt 0:00:00]} Kb7 {[%emt 0:00:19]} 50. Ke6 {[%emt 0:00:00]} c2 {[%emt 0:00:16]} 51. d7 {[%emt 0:00:00]} c1=Q {[%emt 0:00:10]} 52. d8=Q {[%emt 0:00:00]} Qe3+ {[%emt 0:00:25]} 53. Kf5 {[%emt 0:00:00]} Qf3+ {[%emt 0:00:31]} 54. Ke5 {[%emt 0:00:00]} Qc6 {[%emt 0:01:19]} 55. Qf8 {[%emt 0:00:08]} Kb6 {[%emt 0:01:05]} 56. Qb8+ {[%emt 0:01:41]} Ka5 {[%emt 0:00:09]} 57. Qb2 {[%emt 0:01:03]} Qa4 {[%emt 0:01:29]} 58. Kd5 {[%emt 0:01:13]} Qb4 {[%emt 0:00:17]} 59. Qg7 {[%emt 0:00:49]} Ka4 {[%emt 0:00:35]} 60. Qg1 {[%emt 0:02:59]} c4 {[%emt 0:01:36]} 61. Qd1+ {[%emt 0:01:11]} Kb5 {[%emt 0:00:40]} 62. Qc1 {[%emt 0:01:16]} c3 {[%emt 0:00:31]} 63. Qf1+ {[%emt 0:00:30]} Ka4 {[%emt 0:00:25]} 64. Ke6 {[%emt 0:00:41]} Qe4+ {[%emt 0:00:21]} 65. Kd6 {[%emt 0:00:22]} Qd4+ {[%emt 0:00:05]} 66. Kc6 {[%emt 0:00:33]} Qe4+ {[%emt 0:00:38]} 67. Kd6 {[%emt 0:00:32]} c2 {[%emt 0:00:23]} 68. Qxa6+ {[%emt 0:00:29]} Kb4 {[%emt 0:00:02]} 69. Qb6+ {[%emt 0:00:28]} Kc3 {[%emt 0:00:10]} 70. Qb3+ {[%emt 0:00:30]} Kd2 {[%emt 0:02:34]} 0-1